[Event "Galicia-ch 2021"]
[Site "Padron"]
[Date "2021.04.02"]
[Round "3.1"]
[White "Del Prado Rodriguez, Xulio"]
[Black "Gonzalez Perez, Arian"]
[Result "0-1"]
[ECO "E09"]
[WhiteElo "2132"]
[BlackElo "2481"]
[Annotator "ChessBase"]
[PlyCount "108"]
[EventDate "2021.04.02"]
[EventType "swiss"]
[EventCountry "ESP"]
[SourceTitle "playchess.com"]
[Source "ChessBase"]
[SourceQuality "1"]
[TimeControl "5400+30"]

1. d4 {[%emt 0:00:00]} d5 {[%emt 0:00:00]} 2. c4 {[%emt 0:00:00]} e6 {[%emt 0:00:00]} 3. Nf3 {[%emt 0:00:08]} c6 {[%emt 0:00:00]} 4. Qc2 {[%emt 0:01:56]} Nf6 {[%emt 0:10:17]} 5. g3 {[%emt 0:00:50]} Bb4+ {[%emt 0:01:13]} 6. Bd2 {[%emt 0:03:33]} Be7 {[%emt 0:00:09]} 7. Bg2 {[%emt 0:01:02]} O-O {[%emt 0:00:14]} 8. O-O {[%emt 0:00:28]} Nbd7 {[%emt 0:00:14]} 9. Bf4 {[%emt 0:02:53]} Nh5 {[%emt 0:09:06]} 10. Bc1 {[%emt 0:00:09]} Nhf6 {[%emt 0:00:56]} 11. Nbd2 {[%emt 0:00:59]} b6 {[%emt 0:01:04]} 12. e4 {[%emt 0:00:08]} Bb7 {[%emt 0:00:34]} 13. e5 {[%emt 0:01:59]} Ne8 {[%emt 0:02:43]} 14. cxd5 {[%emt 0:00:13]} cxd5 {[%emt 0:00:26]} 15. Re1 {[%emt 0:02:39]} Qc7 {[%emt 0:03:03]} 16. Qb3 {[%emt 0:05:14]} Ba6 {[%emt 0:06:17]} 17. Bf1 {[%emt 0:08:32]} Bxf1 {[%emt 0:00:25]} 18. Nxf1 {[%emt 0:00:06]} Rc8 {[%emt 0:11:43]} 19. Ne3 {[%emt 0:12:49]} f6 {[%emt 0:12:26]} 20. Ng2 {[%emt 0:10:28]} fxe5 {[%emt 0:06:30]} 21. Nxe5 {[%emt 0:00:38]} Nxe5 {[%emt 0:00:43]} 22. Rxe5 {[%emt 0:02:07]} Qd7 {[%emt 0:09:57]} 23. Nf4 {[%emt 0:14:40]} Nc7 {[%emt 0:04:14]} 24. Re2 {[%emt 0:04:36]} Bf6 {[%emt 0:00:31]} 25. Qd3 {[%emt 0:00:33]} Rce8 {[%emt 0:03:24]} 26. Nh5 {[%emt 0:06:15]} Bd8 {[%emt 0:00:12]} 27. Bd2 {[%emt 0:01:50]} Qb5 {[%emt 0:03:50]} 28. Qxb5 {[%emt 0:04:14]} Nxb5 {[%emt 0:00:02]} 29. Bc3 {[%emt 0:01:08]} Bc7 {[%emt 0:01:01]} 30. Rae1 {[%emt 0:02:05]} g6 {[%emt 0:00:21]} 31. Nf4 {[%emt 0:00:05]} Bxf4 {[%emt 0:00:06]} 32. gxf4 {[%emt 0:00:06]} Rf6 {[%emt 0:03:03]} 33. Kg2 {[%emt 0:01:51]} Kf7 {[%emt 0:01:49]} 34. Kg3 {[%emt 0:00:48]} Rc8 {[%emt 0:00:17]} 35. Re3 {[%emt 0:00:54]} Nd6 {[%emt 0:00:28]} 36. Kg2 {[%emt 0:01:45]} Rxf4 {[%emt 0:01:58]} 37. Rxe6 {[%emt 0:00:53]} Ne4 {[%emt 0:00:11]} 38. R1xe4 {[%emt 0:01:14]} dxe4 {[%emt 0:01:47]} 39. Rd6 {[%emt 0:00:18]} Rc7 {[%emt 0:04:46]} 40. d5 {[%emt 0:00:12]} Ke8 {[%emt 0:00:43]} 41. Re6+ {[%emt 0:02:53]} Re7 {[%emt 0:00:34]} 42. Rc6 {[%emt 0:00:06]} Rd7 {[%emt 0:00:37]} 43. d6 {[%emt 0:00:35]} Rf5 {[%emt 0:00:29]} 44. Bb4 {[%emt 0:00:41]} Rdf7 {[%emt 0:00:48]} 45. Rc2 {[%emt 0:00:36]} Kd7 {[%emt 0:00:28]} 46. a4 {[%emt 0:00:45]} a5 {[%emt 0:00:21]} 47. Ba3 {[%emt 0:00:02]} Rg5+ {[%emt 0:01:36]} 48. Kf1 {[%emt 0:00:14]} e3 {[%emt 0:01:02]} 49. Rc7+ {[%emt 0:00:28]} Ke6 {[%emt 0:00:04]} 50. f4 {[%emt 0:00:07]} Rxf4+ {[%emt 0:00:54]} 51. Ke2 {[%emt 0:00:05]} Rf7 {[%emt 0:00:27]} 52. Rc6 {[%emt 0:01:09]} Re5 {[%emt 0:00:42]} 53. Rxb6 {[%emt 0:00:13]} Rf2+ {[%emt 0:00:07]} 54. Ke1 {[%emt 0:00:13]} e2 {[%emt 0:00:34]} 0-1

[Event "Galicia-ch 2021"]
[Site "Padron"]
[Date "2021.04.02"]
[Round "3.2"]
[White "Gonzalez Perez, Jose Ramon"]
[Black "Larino Nieto, David"]
[Result "0-1"]
[ECO "B00"]
[WhiteElo "2099"]
[BlackElo "2461"]
[Annotator "ChessBase"]
[PlyCount "64"]
[EventDate "2021.04.02"]
[EventType "swiss"]
[EventCountry "ESP"]
[SourceTitle "playchess.com"]
[Source "ChessBase"]
[SourceQuality "1"]
[TimeControl "5400+30"]

1. e4 {[%emt 0:00:00]} d6 {[%emt 0:13:13]} 2. d4 {[%emt 0:00:18]} Nd7 {[%emt 0:00:28]} 3. Nf3 {[%emt 0:02:08]} g6 {[%emt 0:00:10]} 4. Bd3 {[%emt 0:04:32]} Bg7 {[%emt 0:00:08]} 5. O-O {[%emt 0:00:19]} e5 {[%emt 0:00:22]} 6. dxe5 {[%emt 0:02:00]} dxe5 {[%emt 0:00:22]} 7. Nc3 {[%emt 0:01:15]} Ngf6 {[%emt 0:00:21]} 8. Qe2 {[%emt 0:04:59]} O-O {[%emt 0:00:16]} 9. Rd1 {[%emt 0:00:33]} c6 {[%emt 0:00:22]} 10. a4 {[%emt 0:01:59]} a5 {[%emt 0:00:58]} 11. b3 {[%emt 0:03:27]} Nh5 {[%emt 0:02:53]} 12. Ba3 {[%emt 0:12:46]} Nf4 {[%emt 0:01:38]} 13. Qf1 {[%emt 0:01:50]} Re8 {[%emt 0:01:46]} 14. Bc4 {[%emt 0:03:01]} h6 {[%emt 0:00:54]} 15. Rd2 {[%emt 0:10:15]} Qb6 {[%emt 0:01:04]} 16. Ne2 {[%emt 0:09:18]} Nc5 {[%emt 0:01:11]} 17. Ng3 {[%emt 0:00:29]} Bg4 {[%emt 0:00:43]} 18. Ne1 {[%emt 0:03:01]} h5 {[%emt 0:00:44]} 19. h3 {[%emt 0:02:01]} h4 {[%emt 0:00:18]} 20. hxg4 {[%emt 0:01:17]} hxg3 {[%emt 0:00:12]} 21. Bxc5 {[%emt 0:02:38]} Qxc5 {[%emt 0:00:11]} 22. Rd7 {[%emt 0:00:24]} Rf8 {[%emt 0:01:30]} 23. Nf3 {[%emt 0:03:38]} Bf6 {[%emt 0:00:33]} 24. Rad1 {[%emt 0:01:17]} b5 {[%emt 0:05:37]} 25. axb5 {[%emt 0:00:49]} cxb5 {[%emt 0:00:03]} 26. Bd5 {[%emt 0:03:31]} Rad8 {[%emt 0:06:33]} 27. Bxf7+ {[%emt 0:03:15]} Kg7 {[%emt 0:00:08]} 28. Bc4+ {[%emt 0:07:01]} Rxd7 {[%emt 0:01:02]} 29. Rxd7+ {[%emt 0:00:06]} Be7 {[%emt 0:00:06]} 30. Bxb5 {[%emt 0:10:04]} Rh8 {[%emt 0:00:09]} 31. Rxe7+ {[%emt 0:00:04]} Qxe7 {[%emt 0:01:00]} 32. Qc4 {[%emt 0:03:00]} Qa7 {[%emt 0:00:15]} 0-1

[Event "Galicia-ch 2021"]
[Site "Padron"]
[Date "2021.04.02"]
[Round "3.3"]
[White "Espineira Gonzalez, Diego"]
[Black "Sixto Puente, Eloy"]
[Result "1/2-1/2"]
[ECO "C89"]
[WhiteElo "2338"]
[BlackElo "2039"]
[Annotator "ChessBase"]
[PlyCount "121"]
[EventDate "2021.04.02"]
[EventType "swiss"]
[EventCountry "ESP"]
[SourceTitle "playchess.com"]
[Source "ChessBase"]
[SourceQuality "1"]
[TimeControl "5400+30"]

1. e4 {[%emt 0:00:00]} e5 {[%emt 0:00:00]} 2. Nf3 {[%emt 0:00:00]} Nc6 {[%emt 0:00:00]} 3. Bb5 {[%emt 0:00:05]} a6 {[%emt 0:00:01]} 4. Ba4 {[%emt 0:00:05]} Nf6 {[%emt 0:00:10]} 5. O-O {[%emt 0:00:58]} Be7 {[%emt 0:00:22]} 6. Re1 {[%emt 0:01:16]} b5 {[%emt 0:00:28]} 7. Bb3 {[%emt 0:00:09]} O-O {[%emt 0:00:14]} 8. c3 {[%emt 0:00:15]} d5 {[%emt 0:01:02]} 9. exd5 {[%emt 0:00:09]} Nxd5 {[%emt 0:00:08]} 10. Nxe5 {[%emt 0:00:11]} Nxe5 {[%emt 0:00:09]} 11. Rxe5 {[%emt 0:00:09]} c6 {[%emt 0:00:17]} 12. d3 {[%emt 0:04:11]} Bd6 {[%emt 0:00:23]} 13. Re1 {[%emt 0:00:07]} Bf5 {[%emt 0:02:40]} 14. Qf3 {[%emt 0:05:35]} Bg6 {[%emt 0:04:02]} 15. Bxd5 {[%emt 0:17:07]} cxd5 {[%emt 0:00:46]} 16. Bf4 {[%emt 0:08:33]} Bxf4 {[%emt 0:07:51]} 17. Qxf4 {[%emt 0:00:19]} Bxd3 {[%emt 0:01:35]} 18. Qd4 {[%emt 0:01:16]} Bxb1 {[%emt 0:11:36]} 19. Raxb1 {[%emt 0:00:10]} Qd6 {[%emt 0:04:43]} 20. Re5 {[%emt 0:02:12]} Rad8 {[%emt 0:01:07]} 21. Rbe1 {[%emt 0:05:41]} h6 {[%emt 0:04:52]} 22. g3 {[%emt 0:02:53]} Rd7 {[%emt 0:01:46]} 23. Rd1 {[%emt 0:01:43]} Rfd8 {[%emt 0:00:56]} 24. Qe3 {[%emt 0:04:57]} Qc6 {[%emt 0:06:37]} 25. Rd4 {[%emt 0:00:54]} Rf8 {[%emt 0:05:21]} 26. Qd2 {[%emt 0:06:11]} Rfd8 {[%emt 0:00:43]} 27. Re3 {[%emt 0:00:07]} Qg6 {[%emt 0:03:18]} 28. Kg2 {[%emt 0:03:27]} Qc6 {[%emt 0:01:02]} 29. h3 {[%emt 0:00:42]} Rd6 {[%emt 0:03:29]} 30. Kg1 {[%emt 0:00:21]} Re6 {[%emt 0:00:56]} 31. Rxe6 {[%emt 0:05:06]} Qxe6 {[%emt 0:01:41]} 32. Kh2 {[%emt 0:00:22]} Qe5 {[%emt 0:01:10]} 33. Kg2 {[%emt 0:00:47]} Rd6 {[%emt 0:04:04]} 34. Qd3 {[%emt 0:01:55]} g6 {[%emt 0:02:14]} 35. a4 {[%emt 0:05:30]} bxa4 {[%emt 0:02:19]} 36. Rxa4 {[%emt 0:02:16]} Rb6 {[%emt 0:01:42]} 37. Qd2 {[%emt 0:00:18]} h5 {[%emt 0:02:08]} 38. Kh2 {[%emt 0:02:33]} Kg7 {[%emt 0:03:57]} 39. Ra5 {[%emt 0:03:43]} Kh7 {[%emt 0:03:59]} 40. h4 {[%emt 0:02:18]} Rf6 {[%emt 0:05:55]} 41. Kg1 {[%emt 0:01:29]} Qe4 {[%emt 0:02:19]} 42. Rxd5 {[%emt 0:03:49]} Qb1+ {[%emt 0:00:18]} 43. Kg2 {[%emt 0:00:06]} Qe4+ {[%emt 0:00:09]} 44. Kg1 {[%emt 0:06:42]} Qb1+ {[%emt 0:00:07]} 45. Kh2 {[%emt 0:01:17]} Qf1 {[%emt 0:01:07]} 46. f4 {[%emt 0:00:07]} Re6 {[%emt 0:01:26]} 47. Re5 {[%emt 0:00:01]} Rd6 {[%emt 0:00:53]} 48. Qe2 {[%emt 0:02:04]} Qc1 {[%emt 0:02:00]} 49. Qg2 {[%emt 0:00:01]} a5 {[%emt 0:03:48]} 50. Re2 {[%emt 0:00:04]} a4 {[%emt 0:00:27]} 51. Rc2 {[%emt 0:00:14]} Qb1 {[%emt 0:00:41]} 52. Rd2 {[%emt 0:02:12]} Re6 {[%emt 0:01:49]} 53. Re2 {[%emt 0:01:42]} Rd6 {[%emt 0:00:08]} 54. Qe4 {[%emt 0:01:24]} Qxe4 {[%emt 0:03:43]} 55. Rxe4 {[%emt 0:00:03]} Rd2+ {[%emt 0:00:07]} 56. Kg1 {[%emt 0:00:30]} Rxb2 {[%emt 0:00:15]} 57. Rxa4 {[%emt 0:00:02]} Kg7 {[%emt 0:01:21]} 58. Rd4 {[%emt 0:01:02]} Kf6 {[%emt 0:00:24]} 59. Kf1 {[%emt 0:00:29]} Rc2 {[%emt 0:01:18]} 60. c4 {[%emt 0:00:29]} Kf5 {[%emt 0:00:46]} 61. Rd7 {[%emt 0:01:19]} 1/2-1/2

[Event "Galicia-ch 2021"]
[Site "Padron"]
[Date "2021.04.02"]
[Round "3.4"]
[White "Alvarez Dominguez, Breixo"]
[Black "Sanchez Aller, Fernando"]
[Result "0-1"]
[ECO "C50"]
[WhiteElo "2025"]
[BlackElo "2337"]
[Annotator "ChessBase"]
[PlyCount "48"]
[EventDate "2021.04.02"]
[EventType "swiss"]
[EventCountry "ESP"]
[SourceTitle "playchess.com"]
[Source "ChessBase"]
[SourceQuality "1"]
[TimeControl "5400+30"]

1. e4 {[%emt 0:00:00]} e5 {[%emt 0:00:00]} 2. Nf3 {[%emt 0:00:00]} Nc6 {[%emt 0:00:00]} 3. Bc4 {[%emt 0:00:00]} Nf6 {[%emt 0:00:00]} 4. d3 {[%emt 0:00:30]} Bc5 {[%emt 0:00:00]} 5. c3 {[%emt 0:00:47]} a6 {[%emt 0:00:27]} 6. O-O {[%emt 0:00:56]} Ba7 {[%emt 0:00:39]} 7. a4 {[%emt 0:09:25]} d6 {[%emt 0:00:32]} 8. h3 {[%emt 0:00:54]} h6 {[%emt 0:00:25]} 9. b4 {[%emt 0:06:37]} Ne7 {[%emt 0:03:16]} 10. Re1 {[%emt 0:11:57]} Ng6 {[%emt 0:00:27]} 11. d4 {[%emt 0:01:47]} Nd7 {[%emt 0:02:43]} 12. Na3 {[%emt 0:05:03]} Qf6 {[%emt 0:01:19]} 13. g3 {[%emt 0:12:37]} Ndf8 {[%emt 0:03:21]} 14. Bf1 {[%emt 0:01:01]} Ne6 {[%emt 0:00:40]} 15. Be3 {[%emt 0:13:59]} Ng5 {[%emt 0:00:14]} 16. Nxg5 {[%emt 0:01:50]} hxg5 {[%emt 0:00:07]} 17. g4 {[%emt 0:03:19]} Be6 {[%emt 0:03:39]} 18. a5 {[%emt 0:06:00]} Nf4 {[%emt 0:01:27]} 19. Bxf4 {[%emt 0:00:46]} gxf4 {[%emt 0:01:54]} 20. dxe5 {[%emt 0:03:52]} Qh4 {[%emt 0:02:32]} 21. Qf3 {[%emt 0:02:12]} Bxg4 {[%emt 0:03:01]} 22. Bb5+ {[%emt 0:00:25]} axb5 {[%emt 0:00:35]} 23. hxg4 {[%emt 0:00:06]} Bxf2+ {[%emt 0:00:12]} 24. Qxf2 {[%emt 0:00:10]} Qh1# 0-1

[Event "Galicia-ch 2021"]
[Site "Padron"]
[Date "2021.04.02"]
[Round "3.5"]
[White "Medarde Santiago, Luis Marcos"]
[Black "Mendez Rial, Jorge"]
[Result "1-0"]
[ECO "C03"]
[WhiteElo "2325"]
[BlackElo "1729"]
[Annotator "NA"]
[PlyCount "73"]
[EventDate "2021.04.02"]
[EventType "swiss"]
[EventCountry "ESP"]
[SourceTitle "playchess.com"]
[Source "ChessBase"]
[SourceQuality "1"]
[TimeControl "5400+30"]

1. e4 {[%emt 0:05:10]} e6 {[%emt 0:00:00]} 2. d4 {[%emt 0:00:03]} d5 {[%emt 0:00:00]} 3. Nd2 {[%emt 0:00:02]} Be7 {[%emt 0:00:40]} 4. Ngf3 {[%emt 0:00:12]} Nf6 {[%emt 0:00:20]} 5. e5 {[%emt 0:00:02]} Nfd7 {[%emt 0:00:06]} 6. Bd3 {[%emt 0:00:03]} c5 {[%emt 0:00:58]} 7. c3 {[%emt 0:00:02]} Nc6 {[%emt 0:00:18]} 8. O-O {[%emt 0:00:06]} a5 {[%emt 0:01:06]} 9. a4 {[%emt 0:00:08] is currently scoring better than 9.Re1.} O-O {[%emt 0:01:18] is the legacy move (9...cxd4).} 10. Re1 {[%emt 0:00:45]} cxd4 {[%emt 0:00:33]} 11. cxd4 {[%emt 0:00:07]} f6 {[%emt 0:00:30]} 12. exf6 {[%emt 0:07:49]} Nxf6 {[%emt 0:00:06] [#]} 13. b3 $146 {[%emt 0:04:59]} ({Predecessor:} 13. Nb1 Nb4 14. Nc3 Nxd3 15. Qxd3 Bd7 16. Bg5 Ra6 17. Re2 Be8 18. Ne5 Nh5 19. Bxe7 Qxe7 {0-1 (29) Reprun,N (1989)-Mammadova,G (2369) Budva 2019}) 13... Qb6 {[%emt 0:03:54]} 14. Bb2 {[%emt 0:00:19]} Bd7 {[%emt 0:03:56]} 15. Nf1 {[%emt 0:04:34]} Bb4 {[%emt 0:05:30]} 16. Re2 {[%emt 0:00:51]} Rae8 {[%emt 0:02:21]} 17. Rc1 {[%emt 0:02:53]} Qd8 {[%emt 0:15:11]} 18. Ng3 {[%emt 0:02:12]} Re7 {[%emt 0:18:53]} 19. Re3 $11 {[%emt 0:14:37]} Qb6 {[%emt 0:12:59]} 20. Bb1 {[%emt 0:03:38]} g6 {[%emt 0:03:17]} 21. h3 {[%emt 0:06:18]} Bd6 {[%emt 0:08:39]} 22. Ne5 {[%emt 0:00:54]} Ne8 {[%emt 0:04:08]} 23. Nxd7 {[%emt 0:02:09]} Rxd7 {[%emt 0:00:01]} 24. Rxe6 {[%emt 0:00:57]} Bxg3 {[%emt 0:00:25]} 25. fxg3 {[%emt 0:00:18]} Rdf7 {[%emt 0:00:23]} 26. Ba3 {[%emt 0:09:28]} Ng7 {[%emt 0:12:15]} 27. Re1 {[%emt 0:00:41]} Rc8 {[%emt 0:00:31]} 28. Kh2 {[%emt 0:00:56]} Nf5 {[%emt 0:00:33]} 29. Bxf5 {[%emt 0:03:26]} Rxf5 {[%emt 0:00:09]} 30. Qe2 {[%emt 0:00:01]} Rf6 {[%emt 0:01:23]} 31. Rf1 {[%emt 0:01:20]} Qd8 {[%emt 0:01:13]} 32. Rxf6 {[%emt 0:01:13]} Qxf6 {[%emt 0:00:01]} 33. Rf1 {[%emt 0:00:01]} Nxd4 {[%emt 0:01:21]} 34. Qd3 {[%emt 0:02:08]} Qb6 {[%emt 0:01:04]} 35. Bb2 {[%emt 0:01:04]} Ne6 {[%emt 0:01:15]} 36. Qxd5 {[%emt 0:00:26]} Qc6 {[%emt 0:01:16]} 37. Qe5 {[%emt 0:00:11]} 1-0

[Event "Galicia-ch 2021"]
[Site "Padron"]
[Date "2021.04.02"]
[Round "3.6"]
[White "Cacheiro Blanco, Diego"]
[Black "Gomez Dieguez, David"]
[Result "0-1"]
[ECO "C50"]
[WhiteElo "1769"]
[BlackElo "2298"]
[Annotator "ChessBase"]
[PlyCount "46"]
[EventDate "2021.04.02"]
[EventType "swiss"]
[EventCountry "ESP"]
[SourceTitle "playchess.com"]
[Source "ChessBase"]
[SourceQuality "1"]
[TimeControl "5400+30"]

1. e4 {[%emt 0:00:00]} e5 {[%emt 0:00:00]} 2. Nf3 {[%emt 0:00:00]} Nc6 {[%emt 0:00:00]} 3. Bc4 {[%emt 0:00:00]} Nf6 {[%emt 0:00:02]} 4. d3 {[%emt 0:00:11]} Bc5 {[%emt 0:00:09]} 5. c3 {[%emt 0:00:09]} a6 {[%emt 0:00:05]} 6. O-O {[%emt 0:00:13]} Ba7 {[%emt 0:00:11]} 7. a4 {[%emt 0:00:19]} h6 {[%emt 0:05:18]} 8. Re1 {[%emt 0:02:45]} d6 {[%emt 0:01:39]} 9. h3 {[%emt 0:02:21]} g5 {[%emt 0:06:17]} 10. Nh2 {[%emt 0:24:15]} Rg8 {[%emt 0:01:54]} 11. Ng4 {[%emt 0:02:19]} Bxg4 {[%emt 0:04:29]} 12. hxg4 {[%emt 0:00:03]} Qd7 {[%emt 0:00:46]} 13. Be3 {[%emt 0:02:11]} Qxg4 {[%emt 0:08:08]} 14. Qb3 {[%emt 0:09:05]} Na5 {[%emt 0:04:39]} 15. Bxf7+ {[%emt 0:00:49]} Ke7 {[%emt 0:00:10]} 16. Qb4 {[%emt 0:00:16]} Bxe3 {[%emt 0:03:09]} 17. Bxg8 {[%emt 0:11:39]} Bb6 {[%emt 0:00:59]} 18. Bd5 {[%emt 0:01:25]} Qh4 {[%emt 0:01:10]} 19. d4 {[%emt 0:01:57]} Ng4 {[%emt 0:00:21]} 20. Nd2 {[%emt 0:06:51]} Qxf2+ {[%emt 0:00:12]} 21. Kh1 {[%emt 0:00:07]} Qh4+ {[%emt 0:00:19]} 22. Kg1 {[%emt 0:00:05]} Rf8 {[%emt 0:00:17]} 23. Nf1 {[%emt 0:00:11]} Rxf1+ {[%emt 0:00:07]} 0-1

[Event "Galicia-ch 2021"]
[Site "Padron"]
[Date "2021.04.02"]
[Round "4.1"]
[White "Gonzalez Perez, Arian"]
[Black "Sanchez Aller, Fernando"]
[Result "1/2-1/2"]
[ECO "E92"]
[WhiteElo "2481"]
[BlackElo "2337"]
[Annotator "ChessBase"]
[PlyCount "76"]
[EventDate "2021.04.02"]
[EventType "swiss"]
[EventCountry "ESP"]
[SourceTitle "playchess.com"]
[Source "ChessBase"]
[SourceQuality "1"]
[TimeControl "5400+30"]

1. d4 {[%emt 0:00:00]} Nf6 {[%emt 0:00:00]} 2. c4 {[%emt 0:00:15]} g6 {[%emt 0:00:00]} 3. Nc3 {[%emt 0:00:30]} Bg7 {[%emt 0:00:00]} 4. e4 {[%emt 0:00:08]} d6 {[%emt 0:00:00]} 5. Nf3 {[%emt 0:00:15]} O-O {[%emt 0:00:04]} 6. Be2 {[%emt 0:00:04]} e5 {[%emt 0:00:06]} 7. Be3 {[%emt 0:00:06]} Ng4 {[%emt 0:00:35]} 8. Bg5 {[%emt 0:00:07]} f6 {[%emt 0:00:07]} 9. Bh4 {[%emt 0:00:06]} Nc6 {[%emt 0:00:11]} 10. d5 {[%emt 0:00:56]} Ne7 {[%emt 0:00:09]} 11. Nd2 {[%emt 0:00:24]} f5 {[%emt 0:00:07]} 12. Bxg4 {[%emt 0:01:50]} fxg4 {[%emt 0:00:05]} 13. Bg5 {[%emt 0:00:23]} Rf4 {[%emt 0:00:05]} 14. g3 {[%emt 0:13:40]} Rf7 {[%emt 0:00:06]} 15. b4 {[%emt 0:00:38]} Bf6 {[%emt 0:06:45]} 16. Bxf6 {[%emt 0:10:35]} Rxf6 {[%emt 0:00:09]} 17. Rc1 {[%emt 0:00:06]} Bd7 {[%emt 0:06:30]} 18. c5 {[%emt 0:01:07]} Qf8 {[%emt 0:00:11]} 19. Qe2 {[%emt 0:07:47]} Qh6 {[%emt 0:00:41]} 20. cxd6 {[%emt 0:10:35]} cxd6 {[%emt 0:00:11]} 21. Nd1 {[%emt 0:00:20]} Rc8 {[%emt 0:05:46]} 22. Rxc8+ {[%emt 0:03:46]} Nxc8 {[%emt 0:00:12]} 23. O-O {[%emt 0:02:46]} Nb6 {[%emt 0:02:10]} 24. Ne3 {[%emt 0:01:43]} Qg5 {[%emt 0:02:08]} 25. Rc1 {[%emt 0:01:39]} Rf7 {[%emt 0:00:12]} 26. Nb3 {[%emt 0:05:32]} h5 {[%emt 0:01:02]} 27. Na5 {[%emt 0:00:30]} a6 {[%emt 0:00:36]} 28. Rc7 {[%emt 0:08:01]} Bc8 {[%emt 0:11:00]} 29. Qc2 {[%emt 0:06:26]} Qd8 {[%emt 0:00:09]} 30. Rc3 {[%emt 0:00:46]} Kg7 {[%emt 0:02:15]} 31. Nec4 {[%emt 0:00:24]} Nxc4 {[%emt 0:01:13]} 32. Rxc4 {[%emt 0:01:39]} Bd7 {[%emt 0:00:24]} 33. Nxb7 {[%emt 0:15:47]} Qb6 {[%emt 0:00:27]} 34. Na5 {[%emt 0:06:29]} Bb5 {[%emt 0:02:02]} 35. Rc3 {[%emt 0:00:15]} Qd4 {[%emt 0:01:25]} 36. Nc6 {[%emt 0:00:51]} Bxc6 {[%emt 0:03:20]} 37. dxc6 {[%emt 0:01:32]} Rxf2 {[%emt 0:00:28]} 38. Qxf2 {[%emt 0:00:02]} Qxc3 {[%emt 0:00:16]} 1/2-1/2

[Event "Galicia-ch 2021"]
[Site "Padron"]
[Date "2021.04.02"]
[Round "4.2"]
[White "Larino Nieto, David"]
[Black "Medarde Santiago, Luis Marcos"]
[Result "1-0"]
[ECO "A48"]
[WhiteElo "2461"]
[BlackElo "2325"]
[Annotator "ChessBase"]
[PlyCount "69"]
[EventDate "2021.04.02"]
[EventType "swiss"]
[EventCountry "ESP"]
[SourceTitle "playchess.com"]
[Source "ChessBase"]
[SourceQuality "1"]
[TimeControl "5400+30"]

1. Nf3 {[%emt 0:05:56]} g6 {[%emt 0:10:34]} 2. d4 {[%emt 0:01:21]} Nf6 {[%emt 0:00:21]} 3. Bf4 {[%emt 0:01:17]} Bg7 {[%emt 0:00:17]} 4. Nc3 {[%emt 0:00:42]} d5 {[%emt 0:01:54]} 5. Qd2 {[%emt 0:00:29]} O-O {[%emt 0:04:07]} 6. O-O-O {[%emt 0:03:47]} c6 {[%emt 0:19:45]} 7. Ne5 {[%emt 0:01:49]} Nbd7 {[%emt 0:01:48]} 8. f3 {[%emt 0:06:40]} Nxe5 {[%emt 0:02:49]} 9. Bxe5 {[%emt 0:00:28]} Nd7 {[%emt 0:05:14]} 10. Bxg7 {[%emt 0:00:15]} Kxg7 {[%emt 0:00:02]} 11. h4 {[%emt 0:01:05]} h5 {[%emt 0:00:08]} 12. g4 {[%emt 0:00:37]} Nf6 {[%emt 0:00:08]} 13. e4 {[%emt 0:09:19]} dxe4 {[%emt 0:07:52]} 14. g5 {[%emt 0:02:39]} Nd5 {[%emt 0:00:25]} 15. fxe4 {[%emt 0:00:24]} Nxc3 {[%emt 0:00:18]} 16. Qxc3 {[%emt 0:00:03]} Qc7 {[%emt 0:02:11]} 17. Bc4 {[%emt 0:05:33]} Qf4+ {[%emt 0:04:47]} 18. Kb1 {[%emt 0:00:12]} Qxe4 {[%emt 0:00:09]} 19. Rde1 {[%emt 0:01:07]} Qg2 {[%emt 0:00:21]} 20. Rhf1 {[%emt 0:06:37]} b5 {[%emt 0:06:34]} 21. d5+ {[%emt 0:21:40]} Kg8 {[%emt 0:01:41]} 22. d6 {[%emt 0:00:53]} e5 {[%emt 0:08:19]} 23. Bb3 {[%emt 0:07:58]} Be6 {[%emt 0:08:35]} 24. Qxe5 {[%emt 0:01:20]} Bxb3 {[%emt 0:00:57]} 25. axb3 {[%emt 0:00:02]} Rad8 {[%emt 0:00:25]} 26. Qe7 {[%emt 0:00:17]} Qd5 {[%emt 0:00:45]} 27. Rf6 {[%emt 0:04:02]} Ra8 {[%emt 0:10:46]} 28. d7 {[%emt 0:00:54]} b4 {[%emt 0:00:31]} 29. Ref1 {[%emt 0:03:46]} a5 {[%emt 0:02:03]} 30. Rd6 {[%emt 0:01:02]} Qg2 {[%emt 0:00:41]} 31. Rxf7 {[%emt 0:00:50]} Qg1+ {[%emt 0:00:32]} 32. Ka2 {[%emt 0:00:07]} Rxf7 {[%emt 0:00:29]} 33. Rxg6+ {[%emt 0:00:12]} Kh8 {[%emt 0:00:16]} 34. Qe5+ {[%emt 0:00:23]} Kh7 {[%emt 0:00:08]} 35. Rh6+ {[%emt 0:00:02]} 1-0

[Event "Galicia-ch 2021"]
[Site "Padron"]
[Date "2021.04.02"]
[Round "4.3"]
[White "Gomez Dieguez, David"]
[Black "Espineira Gonzalez, Diego"]
[Result "1/2-1/2"]
[ECO "C16"]
[WhiteElo "2298"]
[BlackElo "2338"]
[Annotator "ChessBase"]
[PlyCount "68"]
[EventDate "2021.04.02"]
[EventType "swiss"]
[EventCountry "ESP"]
[SourceTitle "playchess.com"]
[Source "ChessBase"]
[SourceQuality "1"]
[TimeControl "5400+30"]

1. e4 {[%emt 0:00:00]} e6 {[%emt 0:00:00]} 2. d4 {[%emt 0:00:00]} d5 {[%emt 0:00:00]} 3. Nc3 {[%emt 0:00:00]} Bb4 {[%emt 0:00:34]} 4. e5 {[%emt 0:00:00]} Ne7 {[%emt 0:00:11]} 5. a3 {[%emt 0:00:00]} Bxc3+ {[%emt 0:00:10]} 6. bxc3 {[%emt 0:00:00]} c5 {[%emt 0:00:20]} 7. h4 {[%emt 0:00:00]} Qc7 {[%emt 0:01:49]} 8. h5 {[%emt 0:00:03]} h6 {[%emt 0:02:36]} 9. Bd2 {[%emt 0:00:32]} Nbc6 {[%emt 0:05:07]} 10. Qg4 {[%emt 0:01:38]} Nf5 {[%emt 0:03:56]} 11. Nf3 {[%emt 0:03:22]} O-O {[%emt 0:05:15]} 12. Bd3 {[%emt 0:04:18]} cxd4 {[%emt 0:19:01]} 13. cxd4 {[%emt 0:08:04]} Nfxd4 {[%emt 0:06:20]} 14. Bxh6 {[%emt 0:00:36]} Nxf3+ {[%emt 0:02:13]} 15. gxf3 {[%emt 0:00:05]} Qxe5+ {[%emt 0:00:27]} 16. Kd2 {[%emt 0:00:04]} f5 {[%emt 0:05:19]} 17. Qg2 {[%emt 0:00:46]} Qf6 {[%emt 0:08:12]} 18. Bg5 {[%emt 0:01:14]} Qf7 {[%emt 0:00:06]} 19. h6 {[%emt 0:12:55]} g6 {[%emt 0:03:02]} 20. h7+ {[%emt 0:00:04]} Kh8 {[%emt 0:00:04]} 21. Rag1 {[%emt 0:01:34]} Bd7 {[%emt 0:00:40]} 22. Bh6 {[%emt 0:03:56]} Be8 {[%emt 0:04:51]} 23. Qg3 {[%emt 0:04:33]} Qf6 {[%emt 0:07:02]} 24. Bxf8 {[%emt 0:03:51]} Qxf8 {[%emt 0:00:11]} 25. Bb5 {[%emt 0:00:34]} Qc5 {[%emt 0:07:07]} 26. Bxc6 {[%emt 0:06:35]} Qd4+ {[%emt 0:00:15]} 27. Ke1 {[%emt 0:00:49]} Bxc6 {[%emt 0:00:49]} 28. Qxg6 {[%emt 0:01:44]} Qa1+ {[%emt 0:00:13]} 29. Kd2 {[%emt 0:05:56]} Qd4+ {[%emt 0:00:13]} 30. Ke1 {[%emt 0:00:24]} Qa1+ {[%emt 0:00:05]} 31. Ke2 {[%emt 0:00:03]} Bb5+ {[%emt 0:00:09]} 32. Kd2 {[%emt 0:01:13]} Qd4+ {[%emt 0:00:13]} 33. Kc1 {[%emt 0:00:31]} Qa1+ {[%emt 0:00:05]} 34. Kd2 {[%emt 0:00:03]} Qd4+ {[%emt 0:00:06]} 1/2-1/2